bitfinex/quotes_BTCUSD_20250624
["timestamp","ask_amount","ask_price","bid_price","bid_amount"]
[1750750209719,0.717314,105800.0,105790.0,0.20370646]
[1750750209925,0.717314,105800.0,105790.0,0.19425378]
[1750750210541,0.718314,105800.0,105790.0,0.19425378]
[1750750210972,0.718314,105800.0,105790.0,0.21315897]
[1750750211203,1.29832095,105800.0,105770.0,0.0002]
[1750750211411,0.9166323,105780.0,105770.0,0.0002]
[1750750211643,0.9166323,105780.0,105770.0,0.18928953]
[1750750211856,1.52003416,105780.0,105770.0,0.0002]
[1750750212287,1.11700186,105780.0,105770.0,0.0002]
[1750750212534,1.67843416,105780.0,105770.0,0.0002]
[1750750212740,1.97469116,105780.0,105770.0,0.0062]
[1750750212948,1.98314393,105780.0,105770.0,0.0002]
[1750750213168,0.38135376,105770.0,105740.0,0.0318]
[1750750213384,0.9014323,105750.0,105740.0,0.0002]
[1750750213607,0.99693416,105750.0,105740.0,0.0002]
[1750750214075,6.04693416,105750.0,105740.0,0.00899914]
[1750750214294,6.07573341,105750.0,105740.0,0.0002]
[1750750214528,6.29479955,105750.0,105740.0,0.0002]
[1750750214753,0.62071615,105710.0,105700.0,0.26606085]
[1750750214987,0.34,105710.0,105700.0,0.10772241]
[1750750215224,0.62071615,105710.0,105700.0,0.09232241]
[1750750215462,0.9014323,105710.0,105700.0,0.00046156]
[1750750215707,1.00939638,105710.0,105700.0,0.00046156]
[1750750215934,0.34,105700.0,105690.0,0.028636]
[1750750216211,6.04693416,105700.0,105690.0,0.02909773]
[1750750216462,0.34,105680.0,105670.0,2.22560704]
[1750750216700,0.34,105680.0,105670.0,2.42447714]
[1750750216932,0.34,105680.0,105670.0,2.47500299]
[1750750217413,0.78020252,105680.0,105670.0,2.47500299]
[1750750217654,0.34,105690.0,105680.0,0.24963706]
[1750750217871,0.34,105690.0,105680.0,0.40967706]
[1750750218289,0.34,105690.0,105680.0,0.50517892]
[1750750218497,0.34,105690.0,105680.0,0.50512892]
[1750750218710,0.78020252,105690.0,105680.0,0.50512892]
[1750750218930,0.78020252,105690.0,105680.0,0.50412892]
[1750750219583,0.78120252,105690.0,105680.0,0.50712892]
[1750750219803,0.341,105690.0,105680.0,0.50712892]
[1750750220282,0.78120252,105690.0,105680.0,0.50712892]
[1750750220465,0.78125252,105690.0,105680.0,0.50712892]
[1750750220713,0.78125252,105690.0,105680.0,0.50720892]
[1750750221562,0.78125252,105690.0,105680.0,0.41170706]
[1750750222211,0.78125252,105690.0,105680.0,0.25458706]
[1750750222429,0.78125252,105690.0,105680.0,0.41466706]
[1750750223928,0.78125252,105690.0,105680.0,0.39574299]
[1750750224177,0.78125252,105690.0,105680.0,0.19446729]
[1750750224442,0.78125252,105690.0,105680.0,0.4026421]
[1750750224653,0.78125252,105690.0,105680.0,0.43574148]
[1750750225902,0.34105,105690.0,105680.0,0.43574148]
[1750750226118,0.78125252,105690.0,105680.0,0.43574148]
[1750750227023,0.78125252,105690.0,105680.0,0.16608]
[1750750227251,5.83125252,105690.0,105680.0,0.006]
[1750750227472,5.83125252,105690.0,105680.0,0.1664]
[1750750227690,5.83125252,105690.0,105680.0,0.3651129]
[1750750227958,5.83125252,105690.0,105680.0,0.37457507]
[1750750228151,0.78125252,105690.0,105680.0,0.3651129]
[1750750228357,0.78125252,105690.0,105680.0,0.37457515]
[1750750229002,0.78125252,105690.0,105680.0,0.3651129]
[1750750229234,0.78125252,105690.0,105680.0,0.38403732]
[1750750229663,0.78125252,105690.0,105680.0,0.37457515]
[1750750230328,0.78125252,105690.0,105680.0,0.3651129]
[1750750230595,0.78125252,105690.0,105680.0,0.1664]
[1750750230809,0.78125252,105690.0,105680.0,0.17586252]
[1750750231033,0.78125252,105690.0,105680.0,0.18532495]
[1750750231240,0.78125252,105690.0,105680.0,0.1664]
[1750750231451,0.78125252,105690.0,105680.0,0.006]
[1750750231670,0.78125252,105690.0,105680.0,0.16656]
[1750750232359,5.83125252,105690.0,105680.0,0.16656]
[1750750233200,5.83125252,105690.0,105680.0,0.006]
[1750750234028,5.83125252,105690.0,105680.0,0.01546252]
[1750750234233,5.83125252,105690.0,105680.0,0.006]
[1750750234234,0.78125252,105690.0,105680.0,0.006]
[1750750234440,0.78125252,105690.0,105680.0,0.20471299]
[1750750234651,0.78125252,105690.0,105680.0,0.006]
[1750750235269,0.34105,105690.0,105680.0,0.2047129]
[1750750235464,0.34105,105690.0,105680.0,0.24527507]
[1750750235465,0.78125252,105690.0,105680.0,0.24527507]
[1750750235711,0.78125252,105690.0,105680.0,0.25473697]
[1750750235911,0.78125252,105690.0,105680.0,0.006]
[1750750236314,0.904531,105690.0,105680.0,0.006]
[1750750237418,0.34,105680.0,105670.0,2.2162821]
[1750750237621,6.08038286,105680.0,105670.0,2.2162821]
[1750750237829,6.78204626,105680.0,105670.0,1.70127437]
[1750750238062,6.77258418,105680.0,105670.0,1.70127437]
[1750750238295,6.92502308,105680.0,105670.0,1.68664881]
[1750750238508,6.34909973,105680.0,105670.0,1.68664881]
[1750750238714,6.15189266,105680.0,105670.0,1.68664881]
[1750750238929,6.34055266,105680.0,105670.0,1.68664881]
[1750750239141,6.29707266,105680.0,105670.0,1.69543504]
[1750750239356,6.29707266,105680.0,105670.0,1.69543489]
[1750750239571,6.29707266,105680.0,105670.0,1.69643489]
[1750750239572,6.30407266,105680.0,105670.0,1.69643489]
[1750750239772,6.29707266,105680.0,105670.0,1.69543489]
[1750750239980,6.13579266,105680.0,105670.0,1.69543489]
[1750750240180,6.13779266,105680.0,105670.0,1.69643489]
[1750750240384,5.99936602,105680.0,105670.0,1.69643489]
[1750750241443,6.16084602,105680.0,105670.0,1.68764881]
[1750750241599,6.16084602,105680.0,105670.0,1.69645903]
[1750750241804,6.19234602,105680.0,105670.0,1.32076122]
[1750750242014,6.19534602,105680.0,105670.0,1.32076122]
[1750750242214,6.20480783,105680.0,105670.0,1.32076122]
[1750750242377,6.19534602,105680.0,105670.0,1.32076122]
[1750750242781,5.98782517,105680.0,105670.0,1.32076122]
[1750750242998,5.95936517,105680.0,105670.0,1.311951]
[1750750247198,5.95936517,105680.0,105650.0,0.0002]
[1750750247199,0.34,105660.0,105650.0,0.0002]
[1750750247447,0.87585622,105660.0,105650.0,0.16205841]
[1750750247655,0.87585622,105660.0,105650.0,0.00033841]
[1750750247862,5.92585622,105660.0,105650.0,0.00033841]
[1750750248068,6.39021512,105660.0,105650.0,0.00033841]
[1750750248277,6.31734957,105650.0,105640.0,6e-05]
[1750750248486,6.55875143,105650.0,105640.0,0.00019844]
[1750750248693,6.38075143,105650.0,105640.0,0.00019844]
[1750750249309,6.38075143,105650.0,105620.0,0.0002]
[1750750249310,5.83035436,105630.0,105620.0,0.0002]
[1750750249526,5.92585622,105630.0,105620.0,0.00066199]
[1750750251092,0.78035436,105630.0,105620.0,0.03156199]
[1750750251736,5.9373505,105630.0,105620.0,0.00266199]
[1750750251961,6.02085618,105630.0,105620.0,0.00266199]
[1750750252163,6.19901618,105630.0,105620.0,0.00266199]
[1750750252385,6.17465074,105630.0,105620.0,0.00266199]
[1750750252595,6.15571755,105630.0,105620.0,0.00266199]
[1750750252806,6.17465039,105630.0,105620.0,0.00266199]
[1750750253039,6.16518384,105630.0,105620.0,0.00266199]
[1750750253251,6.18930711,105630.0,105620.0,0.00466199]
[1750750253456,6.45534918,105630.0,105620.0,0.002]
[1750750253667,6.45434918,105630.0,105620.0,0.002]
[1750750253873,5.83912302,105630.0,105620.0,0.002]
[1750750254074,6.27947729,105630.0,105620.0,0.002]
[1750750254276,6.22947729,105630.0,105620.0,0.002]
[1750750254501,5.77018965,105630.0,105620.0,0.002]
[1750750254719,5.05,105620.0,105590.0,4.75296023]
[1750750254948,0.78035436,105610.0,105600.0,0.0331]
[1750750255154,0.78035436,105610.0,105590.0,4.69847976]
[1750750255155,0.78035436,105610.0,105590.0,4.73157721]
[1750750255369,0.78035436,105610.0,105600.0,0.0165]
[1750750255618,0.78035436,105610.0,105600.0,0.23993304]
[1750750256082,0.78035436,105610.0,105600.0,0.0316]
[1750750256294,0.341,105610.0,105600.0,0.04206969]
[1750750256502,0.78135436,105610.0,105600.0,0.24093322]
[1750750256705,0.78135436,105610.0,105600.0,0.23146362]
[1750750256932,0.341,105610.0,105600.0,0.25987125]
[1750750257164,0.341,105610.0,105600.0,0.42371125]
[1750750257997,0.36938171,105610.0,105600.0,0.42471125]
[1750750258662,0.001,105610.0,105600.0,0.42471125]
[1750750259689,0.001,105610.0,105600.0,0.52021311]
[1750750260520,0.00105,105610.0,105600.0,0.52021311]
[1750750260950,0.00105,105610.0,105600.0,0.51921311]
[1750750261393,0.00205,105610.0,105600.0,0.52321311]
[1750750261603,0.00205,105610.0,105600.0,0.42771125]
[1750750261814,0.00105,105610.0,105600.0,0.0356]
[1750750262020,0.00105,105610.0,105600.0,0.24393322]
[1750750262257,0.00205,105610.0,105600.0,0.26787188]
[1750750262473,0.00205,105610.0,105600.0,0.27734094]
[1750750262678,0.00205,105610.0,105600.0,0.26787188]
[1750750262884,0.00205,105610.0,105600.0,0.2773404]
[1750750264326,0.00205,105610.0,105600.0,0.41820226]
[1750750265165,0.00205,105610.0,105600.0,0.43586822]
[1750750265773,0.00205,105610.0,105600.0,0.39050822]
[1750750266000,0.00205,105610.0,105600.0,0.60042822]
[1750750266730,0.00205,105610.0,105600.0,0.60043055]
[1750750267178,0.00205,105610.0,105600.0,0.55507055]
[1750750267417,0.00205,105610.0,105600.0,0.02666829]
[1750750267599,0.00205,105610.0,105600.0,0.22553182]
[1750750267600,0.34205,105610.0,105600.0,0.22553182]
[1750750267845,0.78240436,105610.0,105600.0,0.02666829]
[1750750268421,0.34205,105610.0,105600.0,0.02666829]
[1750750268627,5.84740436,105610.0,105600.0,0.02666829]
[1750750268825,5.94290622,105610.0,105600.0,0.02666829]
[1750750269024,5.50255186,105610.0,105600.0,0.02666829]
[1750750269225,5.94290622,105610.0,105600.0,0.02666829]
[1750750269433,5.94290622,105610.0,105600.0,0.0266745]
[1750750269806,5.09340799,105600.0,105590.0,4.49959777]
[1750750270023,6.43985924,105600.0,105590.0,4.49597039]
[1750750270234,5.91398146,105600.0,105590.0,4.48192327]
[1750750270475,5.82805176,105600.0,105590.0,4.48192327]
[1750750270708,6.70876048,105600.0,105590.0,4.48192327]
[1750750270933,6.69929124,105600.0,105590.0,4.48192327]
[1750750271179,5.81858252,105600.0,105590.0,4.48192327]
[1750750271414,6.84476119,105600.0,105590.0,4.48192327]
[1750750271896,5.87058252,105600.0,105590.0,4.48192327]
[1750750272107,5.87058252,105600.0,105590.0,4.09774248]
[1750750272108,6.79045831,105600.0,105590.0,4.09774248]
[1750750272314,6.79045831,105600.0,105590.0,4.09674248]
[1750750272315,6.75587566,105600.0,105590.0,4.09674248]
[1750750272562,6.75587566,105600.0,105590.0,4.0872595]
[1750750272769,6.86333789,105600.0,105590.0,4.0882595]
[1750750272967,6.86333789,105600.0,105590.0,4.07877652]
[1750750273181,5.97610247,105600.0,105590.0,4.06496798]
[1750750273400,6.85681119,105600.0,105590.0,4.06496798]
[1750750273623,6.86338793,105600.0,105590.0,4.055485]
[1750750273842,6.86938793,105600.0,105590.0,4.00807007]
[1750750274060,6.77391798,105600.0,105590.0,3.98104198]
[1750750274257,6.77392341,105600.0,105590.0,3.98104198]
[1750750274460,6.77392341,105600.0,105590.0,3.971559]
[1750750274661,6.77392341,105600.0,105590.0,3.92414407]
[1750750274865,6.77392341,105600.0,105590.0,3.91466109]
[1750750275074,6.59399872,105600.0,105590.0,3.86724616]
[1750750275288,6.07016476,105600.0,105590.0,3.86724616]
[1750750275488,6.31193165,105600.0,105590.0,3.86724616]
[1750750275699,5.63776908,105600.0,105590.0,3.86724616]
[1750750275911,5.98738522,105600.0,105590.0,3.86724616]
[1750750276110,5.98692607,105600.0,105590.0,3.86724616]
[1750750276541,5.54657171,105600.0,105590.0,3.86724616]
[1750750276748,5.97238522,105600.0,105590.0,3.86724616]
[1750750277087,5.54657171,105600.0,105590.0,3.87624616]
[1750750277326,5.98692607,105600.0,105590.0,3.86724616]
[1750750278812,5.63238522,105600.0,105590.0,3.86724616]
[1750750279030,5.60390622,105600.0,105590.0,3.86724616]
[1750750279243,5.94390622,105600.0,105590.0,3.86724616]
[1750750279456,5.50355186,105600.0,105590.0,3.86724616]
[1750750279654,5.93790622,105600.0,105590.0,3.86724616]
[1750750280085,5.50155186,105600.0,105590.0,3.86824616]
[1750750280291,5.50155186,105600.0,105590.0,4.28736853]
[1750750280292,0.01605,105600.0,105590.0,4.28736853]
[1750750280542,0.01605,105600.0,105590.0,4.30630917]
[1750750280789,0.01605,105600.0,105590.0,4.31577913]
[1750750281459,5e-05,105600.0,105590.0,4.31377913]
[1750750282158,0.00205,105600.0,105590.0,4.31377913]
[1750750282384,0.00205,105600.0,105590.0,4.28536862]
[1750750282623,0.00205,105600.0,105590.0,4.30430935]
[1750750282858,0.43955186,105600.0,105590.0,3.86724616]
[1750750283080,0.50074145,105600.0,105590.0,4.05576616]
[1750750283298,0.49874145,105600.0,105590.0,4.05476616]
[1750750283516,0.49974145,105600.0,105590.0,4.05676616]
[1750750284195,0.49974145,105600.0,105590.0,4.06623675]
[1750750284424,0.49974145,105600.0,105590.0,4.05676616]
[1750750284646,0.94009581,105600.0,105590.0,3.86824616]
[1750750285102,0.49974145,105600.0,105590.0,3.86824616]
[1750750285328,0.94009581,105600.0,105590.0,3.86824616]
[1750750285537,6.01993666,105600.0,105590.0,3.86824616]
[1750750285777,5.5642823,105600.0,105590.0,3.86824616]
[1750750286711,6.00463666,105600.0,105590.0,3.86824616]
[1750750286957,5.5642823,105600.0,105590.0,3.86824616]
[1750750287205,6.00463666,105600.0,105590.0,3.86824616]
[1750750287461,6.00263666,105600.0,105590.0,3.86824616]
[1750750287943,6.03853666,105600.0,105590.0,3.86824616]
[1750750288375,6.00663666,105600.0,105590.0,3.86824616]
[1750750288816,6.02203666,105600.0,105590.0,3.86824616]
[1750750289339,6.00663666,105600.0,105590.0,3.86824616]
[1750750289562,6.19499666,105600.0,105590.0,3.86824616]
[1750750290227,6.19503666,105600.0,105590.0,3.86824616]
[1750750290662,5.73998145,105600.0,105590.0,3.86824616]
[1750750290867,5.99209581,105600.0,105590.0,3.86824616]
[1750750291081,5.48955186,105600.0,105590.0,3.86624616]
[1750750291295,5.48955186,105600.0,105590.0,3.89704616]
[1750750291466,5.49055186,105600.0,105590.0,3.89804616]
[1750750292702,5.49055186,105600.0,105590.0,3.88274616]
[1750750293733,5.49055186,105600.0,105590.0,3.86724616]
[1750750293946,5.93090622,105600.0,105590.0,3.86724616]
[1750750294191,5.49055186,105600.0,105590.0,3.86724616]
[1750750294414,5.93090622,105600.0,105590.0,3.86724616]
[1750750294629,5.49055186,105600.0,105590.0,3.86724616]
[1750750294844,5.49055186,105600.0,105590.0,4.06612862]
[1750750295059,5.49055186,105600.0,105590.0,3.89944616]
[1750750295263,0.44055186,105600.0,105590.0,4.09832862]
[1750750295910,0.44055186,105600.0,105590.0,4.09832853]
[1750750296122,0.44055186,105600.0,105590.0,4.08885803]
[1750750296339,0.00505,105600.0,105590.0,4.30546872]
[1750750297640,0.34505,105600.0,105590.0,4.30546872]
[1750750298059,0.34505,105600.0,105590.0,4.11726872]
[1750750298271,0.34505,105600.0,105590.0,4.30462872]
[1750750298856,0.00505,105600.0,105590.0,4.30462872]
[1750750303012,0.00505,105600.0,105590.0,4.11726872]
[1750750303228,0.00505,105600.0,105590.0,4.30350872]
[1750750304333,0.00505,105600.0,105590.0,4.11726872]
[1750750304556,0.00505,105600.0,105590.0,4.30326872]
[1750750305384,0.00505,105600.0,105590.0,4.29379876]
[1750750305662,0.00505,105600.0,105590.0,4.30326872]
[1750750309978,0.00505,105600.0,105590.0,4.30326881]
[1750750310136,0.00505,105600.0,105590.0,4.31273877]
[1750750310638,0.00505,105600.0,105590.0,4.12673877]
[1750750310868,0.00505,105600.0,105590.0,4.31181877]
[1750750311076,0.34505,105600.0,105590.0,4.3023489]
[1750750311681,0.34505,105600.0,105590.0,4.31181895]
[1750750311914,0.34505,105600.0,105590.0,4.32128891]
[1750750313869,0.34505,105600.0,105590.0,4.31181895]
[1750750314081,0.78540436,105600.0,105590.0,3.86724616]
[1750750314299,6.00727581,105600.0,105590.0,3.86724616]
[1750750314523,6.02237581,105600.0,105590.0,3.86724616]
[1750750317363,6.03691666,105600.0,105590.0,3.86724616]
[1750750317727,6.07486472,105600.0,105590.0,3.86724616]
[1750750317953,6.12732277,105600.0,105590.0,3.86724616]
[1750750318173,6.52468823,105600.0,105590.0,3.86724616]
[1750750318605,6.06539566,105600.0,105590.0,3.86724616]
[1750750319031,5.95938522,105600.0,105590.0,3.86724616]
[1750750319234,5.49055186,105600.0,105590.0,3.86724616]
[1750750319947,5.93090622,105600.0,105590.0,3.86724616]
[1750750320166,5.94720622,105600.0,105590.0,3.86724616]
[1750750320387,5.53669271,105600.0,105590.0,3.86724616]
[1750750320586,5.97704707,105600.0,105590.0,3.86724616]
[1750750320797,5.93090622,105600.0,105590.0,3.86724616]
[1750750321436,6.03371399,105600.0,105590.0,3.86724616]
[1750750322704,5.93090622,105600.0,105590.0,3.86724616]
[1750750322921,5.49055186,105600.0,105590.0,3.86724616]
[1750750323139,5.49055186,105600.0,105590.0,3.36724616]
[1750750323349,5.93090622,105600.0,105590.0,3.36724616]
[1750750323561,5.98727314,105600.0,105590.0,3.36724616]
[1750750324940,6.00247314,105600.0,105590.0,3.36724616]
[1750750325337,6.21817399,105600.0,105590.0,3.36724616]
[1750750325800,6.66799723,105600.0,105590.0,3.36724616]
[1750750326012,6.67746629,105600.0,105590.0,3.36724616]
[1750750326223,6.77293624,105600.0,105590.0,3.36724616]
[1750750326451,6.79187508,105600.0,105590.0,3.36724616]
[1750750326653,6.77293624,105600.0,105590.0,3.36724616]
[1750750326858,6.79847793,105600.0,105590.0,3.36724616]
[1750750327078,6.79847856,105600.0,105590.0,3.36724616]
[1750750327284,6.97840343,105600.0,105590.0,3.36724616]
[1750750327494,6.77953999,105600.0,105590.0,3.36724616]
[1750750327738,6.78900878,105600.0,105590.0,3.36724616]
[1750750327981,6.77953945,105600.0,105590.0,3.36724616]
[1750750328427,6.82302718,105600.0,105590.0,3.36724616]
[1750750328649,6.13795282,105600.0,105590.0,3.36724616]
[1750750328853,6.39214188,105600.0,105590.0,3.36724616]
[1750750329036,6.84196548,105600.0,105590.0,3.36724616]
[1750750329450,6.82302718,105600.0,105590.0,3.36724616]
[1750750329661,6.82302718,105600.0,105590.0,0.59637976]
[1750750329662,6.83249633,105600.0,105590.0,0.59637976]
[1750750330087,6.84196575,105600.0,105590.0,0.59637976]
[1750750330314,7.04082937,105600.0,105590.0,0.5782164]
[1750750330548,7.06901404,105600.0,105590.0,0.5782164]
[1750750330795,6.87961957,105600.0,105590.0,0.5782164]
[1750750331021,6.37979606,105600.0,105590.0,0.5782164]
[1750750331241,6.37867291,105600.0,105590.0,0.5772164]
[1750750331449,6.73202647,105600.0,105590.0,0.5772164]
[1750750331659,6.72755732,105600.0,105590.0,0.5782164]
[1750750331872,6.49230656,105600.0,105590.0,0.5782164]
[1750750332126,6.75576558,105600.0,105590.0,0.5782164]
[1750750332343,6.74629598,105600.0,105590.0,0.10611]
[1750750332560,6.73682647,105600.0,105590.0,0.10611]
[1750750332778,6.84176575,105600.0,105590.0,0.10611]
[1750750333191,6.83229642,105600.0,105590.0,0.10611]
[1750750333428,6.83229633,105600.0,105590.0,0.10611]
[1750750333633,6.8133583,105600.0,105590.0,0.10611]
[1750750333838,6.82282718,105600.0,105590.0,0.10611]
[1750750334049,6.84124539,105600.0,105590.0,0.10611]
[1750750334250,6.8507149,105600.0,105590.0,0.10611]
[1750750334480,0.19890112,105580.0,105570.0,0.0159438]
[1750750334730,0.19890112,105580.0,105540.0,0.0002]
[1750750334731,5.88476858,105550.0,105540.0,0.0002]
[1750750334935,5.89,105530.0,105520.0,0.02]
[1750750335140,6.02985521,105530.0,105520.0,0.02]
[1750750335352,5.64586777,105530.0,105520.0,0.02]
[1750750335560,6.01072014,105530.0,105520.0,0.02]
[1750750335768,6.01072014,105530.0,105520.0,0.0508]
[1750750335974,6.01072014,105530.0,105520.0,0.05093855]
[1750750336178,0.96072014,105530.0,105520.0,0.05093855]
[1750750336380,0.96472014,105530.0,105520.0,0.05093855]
[1750750336993,0.96472014,105530.0,105520.0,0.06041542]
[1750750337196,0.96472014,105530.0,105520.0,0.05093855]
[1750750337634,0.97743726,105530.0,105520.0,0.05093855]
[1750750337863,0.5370829,105530.0,105520.0,0.05093855]
[1750750338070,0.97743726,105530.0,105520.0,0.05093855]
[1750750338302,0.97743726,105530.0,105500.0,0.00211]
[1750750338303,0.34,105520.0,105500.0,0.00211]
[1750750338542,5.58585622,105510.0,105500.0,0.00211]
[1750750338759,5.58585622,105510.0,105500.0,0.00224857]
[1750750339176,5.64222314,105510.0,105500.0,0.00224857]
[1750750339396,5.98222314,105510.0,105500.0,0.00224857]
[1750750339614,5.99676399,105510.0,105500.0,0.00224857]
[1750750339856,6.44045353,105510.0,105500.0,0.00224857]
[1750750340064,5.40454085,105470.0,105460.0,0.0159438]
[1750750340287,6.12487707,105470.0,105460.0,0.01640494]
[1750750340509,6.21308806,105470.0,105460.0,0.00660004]
[1750750340723,6.05712506,105470.0,105460.0,0.00660004]
[1750750340934,6.02526799,105470.0,105460.0,0.00660004]
[1750750341169,5.96891407,105470.0,105460.0,0.00660004]
[1750750341383,5.96896407,105470.0,105460.0,0.00660004]
[1750750341613,0.46406886,105470.0,105460.0,0.1962454]
[1750750341842,0.46706886,105470.0,105460.0,0.25529128]
[1750750342075,0.46706886,105470.0,105460.0,0.25529146]
[1750750342319,0.46706886,105470.0,105460.0,0.23632757]
[1750750342532,6.06610792,105470.0,105440.0,0.00016339]
[1750750342789,5.84489521,105450.0,105440.0,0.00016339]
[1750750343003,5.94039707,105450.0,105440.0,0.00016339]
[1750750344099,0.46404633,105450.0,105440.0,0.20881257]
[1750750344310,0.46404633,105450.0,105440.0,0.23991257]
[1750750344526,0.02854447,105450.0,105440.0,0.2588797]
[1750750344970,0.34,105460.0,105450.0,0.24901192]
[1750750345179,0.43550186,105460.0,105450.0,0.26797707]
[1750750345390,0.02902834,105470.0,105460.0,0.20860925]
[1750750345611,0.1245302,105470.0,105460.0,0.25009106]
[1750750345815,0.4645302,105470.0,105460.0,0.25757269]
[1750750346025,0.4645302,105470.0,105460.0,0.25657269]
[1750750346475,0.00050934,105470.0,105460.0,0.25457269]
[1750750346688,0.02901834,105470.0,105460.0,0.24509097]
[1750750347115,0.03201834,105470.0,105460.0,0.24509097]
[1750750348013,0.00350934,105470.0,105460.0,0.42941097]
[1750750348853,0.00350934,105470.0,105460.0,0.42929097]
[1750750349065,0.00050934,105470.0,105460.0,0.42929097]
[1750750349271,0.00250934,105470.0,105460.0,0.43329097]
[1750750350347,0.00350934,105470.0,105460.0,0.23269097]
[1750750350547,0.00350934,105470.0,105460.0,0.43193097]
[1750750350974,0.96856726,105470.0,105460.0,0.004]
[1750750351191,6.01856726,105470.0,105460.0,0.004]
[1750750351421,6.01956726,105470.0,105460.0,0.004]
[1750750352080,0.35454085,105460.0,105450.0,0.18368]
[1750750352288,0.89039707,105460.0,105450.0,0.18368]
[1750750352511,5.94039707,105460.0,105440.0,0.00016339]
[1750750352748,5.58585622,105450.0,105440.0,0.00964745]
[1750750352969,0.53585622,105450.0,105440.0,0.1993286]
[1750750353179,0.09550186,105450.0,105440.0,0.3922123]
[1750750353391,0.028517,105450.0,105440.0,0.87485009]
[1750750353597,0.00250934,105470.0,105460.0,0.21809106]
[1750750353814,0.34250934,105470.0,105460.0,0.42376943]
[1750750354063,0.34250934,105470.0,105460.0,0.24040943]
[1750750354278,0.34050934,105470.0,105460.0,0.25766267]
[1750750354482,0.34050934,105470.0,105460.0,0.43994267]
[1750750355107,0.34050934,105470.0,105460.0,0.44002267]
[1750750355315,0.34150934,105470.0,105460.0,0.25766267]
[1750750355553,0.34150934,105470.0,105460.0,0.44094267]
[1750750355968,0.34250934,105470.0,105460.0,0.44594267]
[1750750356246,0.34250934,105470.0,105460.0,0.44594665]
[1750750356855,0.34250934,105470.0,105460.0,0.40530502]
[1750750357061,0.34250934,105470.0,105460.0,0.43118683]
[1750750357261,0.34250934,105470.0,105460.0,0.45586846]
[1750750358175,0.34250934,105470.0,105460.0,0.45566846]
[1750750358554,0.34250934,105470.0,105460.0,0.45766846]
[1750750359114,0.34250934,105470.0,105460.0,0.45746846]
[1750750360154,0.34250934,105470.0,105460.0,0.45738846]
[1750750361394,0.00250934,105470.0,105460.0,0.45738846]
[1750750361808,0.34,105490.0,105480.0,0.21804973]
[1750750362013,5.46571085,105500.0,105490.0,0.20855012]
[1750750362222,5.56121271,105500.0,105490.0,0.20855021]
[1750750362440,0.07571085,105500.0,105490.0,0.22750836]
[1750750362642,0.07571085,105500.0,105490.0,0.23955021]
[1750750362859,0.41571085,105500.0,105490.0,0.24902924]
[1750750363054,0.41571085,105500.0,105490.0,0.25750818]
[1750750363674,0.41571085,105500.0,105490.0,0.25650818]
[1750750363877,0.34005,105500.0,105490.0,0.25650818]
[1750750364079,0.34005,105500.0,105490.0,0.23755021]
[1750750364330,0.34005,105500.0,105490.0,0.24702942]
[1750750364503,0.34105,105500.0,105490.0,0.24902942]
[1750750364704,0.34105,105500.0,105490.0,0.23955021]
[1750750364911,0.34405,105500.0,105490.0,0.21567091]
[1750750365114,0.34405,105500.0,105490.0,0.20819143]
[1750750365329,0.34405,105500.0,105490.0,0.18372]
[1750750365330,0.95256707,105500.0,105490.0,0.18372]
[1750750365575,6.01710792,105500.0,105490.0,0.01083574]
[1750750365738,6.01810792,105500.0,105490.0,0.01383574]
[1750750365945,5.94244707,105500.0,105490.0,0.01383574]
[1750750366155,5.94244707,105500.0,105490.0,0.19563574]
[1750750366564,5.94244707,105500.0,105490.0,0.01383574]
[1750750366791,6.06461892,105500.0,105490.0,0.01383574]
[1750750366928,6.52392999,105500.0,105490.0,0.01383574]
[1750750367142,6.71350344,105500.0,105490.0,0.01384245]
[1750750367399,5.58641798,105500.0,105490.0,0.01384245]
[1750750367593,6.03625074,105500.0,105490.0,0.01384245]
[1750750367799,6.02577234,105500.0,105490.0,0.01184245]
[1750750367994,6.4756051,105500.0,105490.0,0.01184245]
[1750750368207,6.4776051,105500.0,105490.0,0.01284245]
[1750750368411,6.48708368,105500.0,105490.0,0.01284245]
[1750750368710,6.48708368,105500.0,105490.0,0.00984245]
[1750750368711,6.58155363,105500.0,105490.0,0.00984245]
[1750750369015,6.4926676,105500.0,105490.0,0.00984245]
[1750750369247,6.4956676,105500.0,105490.0,0.01084245]
[1750750369480,6.49566751,105500.0,105490.0,0.01084245]
[1750750369686,6.4672324,105500.0,105490.0,0.01084245]
[1750750369892,6.1223479,105500.0,105490.0,0.01084245]
[1750750370097,6.01740009,105500.0,105490.0,0.01086145]
[1750750370300,6.02687795,105500.0,105490.0,0.01086145]
[1750750370434,6.0363559,105500.0,105490.0,0.002]
[1750750370645,6.01740009,105500.0,105490.0,0.002]
[1750750371176,5.95203099,105500.0,105490.0,0.002]
[1750750371375,6.04091702,105500.0,105490.0,0.002]
[1750750371574,6.23782247,105500.0,105490.0,0.002]
[1750750371782,5.6925203,105500.0,105490.0,0.002]
[1750750372148,6.13287466,105500.0,105490.0,0.002]
[1750750372950,6.16138366,105500.0,105490.0,0.002]
[1750750373138,6.17086152,105500.0,105490.0,0.002]
[1750750373350,6.18033956,105500.0,105490.0,0.002]
[1750750373553,6.31790951,105500.0,105490.0,0.002]
[1750750373746,6.30843147,105500.0,105490.0,0.002]
[1750750373901,6.29236602,105500.0,105490.0,0.002]
[1750750374242,6.20348616,105500.0,105490.0,0.002]
[1750750374461,6.22244206,105500.0,105490.0,0.002]
[1750750375059,6.21296402,105500.0,105490.0,0.002]
[1750750375259,6.23192019,105500.0,105490.0,0.002]
[1750750375476,6.23192001,105500.0,105490.0,0.002]
[1750750375663,6.32739439,105500.0,105490.0,0.002]
[1750750375870,6.3368727,105500.0,105490.0,0.002]
[1750750376302,6.31791635,105500.0,105490.0,0.002]
[1750750376413,6.31791644,105500.0,105490.0,0.002]
[1750750376627,6.3084384,105500.0,105490.0,0.002]
[1750750376856,6.20349059,105500.0,105490.0,0.002]
[1750750377916,6.24703773,105500.0,105490.0,0.002]
[1750750378269,6.24703764,105500.0,105490.0,0.002]
[1750750378488,6.24044312,105500.0,105490.0,0.002]
[1750750378696,6.24703625,105500.0,105490.0,0.002]
[1750750379096,6.2375583,105500.0,105490.0,0.002]
[1750750379273,6.24703625,105500.0,105490.0,0.002]
[1750750379503,6.24703616,105500.0,105490.0,0.002]
[1750750379875,6.2375583,105500.0,105490.0,0.002]
[1750750380340,6.0146183,105500.0,105490.0,0.002]
[1750750380583,5.94544707,105500.0,105490.0,0.002]
[1750750380789,6.12480707,105500.0,105490.0,0.002]
[1750750381391,5.94544707,105500.0,105490.0,0.002]
[1750750381602,6.12472707,105500.0,105490.0,0.002]
[1750750383589,5.94544707,105500.0,105490.0,0.19159143]
[1750750383796,0.10055186,105500.0,105490.0,0.24599143]
[1750750384201,0.10055186,105500.0,105490.0,0.26495039]